bitfinex-derivatives/quotes_ETHF0:USTF0_20260223
["timestamp","ask_amount","ask_price","bid_price","bid_amount"]
[1771821756275,1.1169578,1855.7,1855.3,1.14190499]
[1771821756475,0.82715316,1855.6,1855.3,1.14190499]
[1771821756774,1.1169578,1855.7,1855.3,1.14190499]
[1771821757578,1.11844069,1855.8,1855.3,1.14190499]
[1771821757874,1.1114918,1855.6,1855.3,1.14190499]
[1771821759076,1.10823813,1855.7,1855.3,1.14190499]
[1771821763473,0.00694889,1855.8,1855.3,1.14190499]
[1771821763474,1.09769864,1855.8,1855.3,1.14190499]
[1771821763679,6.467,1856.4,1855.7,1.22690731]
[1771821763875,0.8244887,1856.1,1855.7,1.22690731]
[1771821764070,0.07254217,1856.1,1855.7,1.22690731]
[1771821764676,0.07856454,1856.1,1855.7,1.22690731]
[1771821765681,6.5421253,1856.4,1855.7,1.22690731]
[1771821766578,1.420451,1856.2,1855.7,1.22690731]
[1771821768780,1.420451,1856.2,1855.9,1.24595986]
[1771821769787,0.01268951,1856.7,1856.1,1.24608307]
[1771821770382,0.11397497,1856.5,1856.2,1.24286741]
[1771821770587,0.11397497,1856.5,1855.9,1.24286741]
[1771821770784,0.11802749,1856.5,1855.9,1.24286741]
[1771821772686,1.20877724,1856.5,1855.9,1.24286741]
[1771821772890,0.09699941,1856.3,1855.8,1.24661867]
[1771821773291,1.18276408,1856.2,1855.8,1.24661867]
[1771821773493,0.09201433,1856.2,1855.8,1.24661867]
[1771821773790,1.18276408,1856.2,1855.8,1.24661867]
[1771821773991,1.09074975,1856.2,1855.8,1.24661867]
[1771821774193,1.1815795,1856.2,1855.8,1.24661867]
[1771821774393,1.11682974,1856.1,1855.8,0.22061868]
[1771821774695,2.20757949,1856.0,1855.4,1.22870856]
[1771821774994,1.11682974,1856.0,1855.4,1.22870856]
[1771821776196,1.18412162,1856.2,1855.6,1.86014125]
[1771821776396,1.18412162,1856.2,1855.7,1.22870856]
[1771821776797,1.09074975,1856.1,1855.7,1.22870856]
[1771821778601,1.09074975,1856.0,1855.7,1.22870856]
[1771821778803,1.18412162,1856.2,1855.7,1.22870856]
[1771821779102,1.09074975,1856.1,1855.7,1.22870856]
[1771821779299,1.18412162,1856.2,1855.7,1.22870856]
[1771821779602,1.09074975,1856.1,1855.7,1.22870856]
[1771821779803,1.18412162,1856.2,1855.7,1.22870856]
[1771821780205,2.15292152,1856.1,1855.7,1.22870856]
[1771821780405,1.06217177,1856.1,1855.7,1.22870856]
[1771821780700,1.09074975,1856.0,1855.7,1.22870856]
[1771821781503,1.05366745,1855.7,1855.3,1.22870856]
[1771821782105,1.04949192,1855.6,1855.3,1.22870856]
[1771821782300,1.04949192,1855.6,1855.2,1.2344635]
[1771821782607,1.09074975,1855.5,1855.2,1.2336635]
[1771821784010,0.66411999,1855.5,1855.2,1.2336635]
[1771821784306,1.03850525,1855.9,1855.4,1.22870856]
[1771821785510,1.03850525,1855.9,1855.6,4.54303221]
[1771821785711,1.22416813,1855.8,1855.4,1.22870856]
[1771821786911,1.22416813,1856.0,1855.4,1.22870856]
[1771821788806,1.22416813,1856.2,1855.4,1.22870856]
[1771821789014,0.82363974,1856.1,1855.4,1.22870856]
[1771821789210,1.22416813,1856.2,1855.4,1.22870856]
[1771821789412,1.22416813,1856.0,1855.4,1.22870856]
[1771821790611,1.22416813,1856.2,1855.4,1.22870856]
[1771821790911,2.04821429,1856.1,1855.4,1.22870856]
[1771821791112,0.82404616,1856.0,1855.4,1.22870856]
[1771821791310,1.22416813,1856.1,1855.4,1.22870856]
[1771821791510,2.04837392,1856.0,1855.4,1.22870856]
[1771821791710,1.22416813,1856.0,1855.4,1.22870856]
[1771821793315,1.22416813,1855.9,1855.2,1.2336635]
[1771821801521,1.25663007,1855.7,1855.2,0.00495494]
[1771821803121,1.25663007,1855.7,1855.2,1.31384104]
[1771821805420,0.07326183,1856.1,1855.2,1.31384104]
[1771821805720,0.07326183,1855.9,1855.2,1.31384104]
[1771821806019,0.89468404,1855.8,1855.2,1.31384104]
[1771821806313,0.07326183,1855.8,1855.2,1.31384104]
[1771821807320,0.82156413,1855.7,1855.2,1.31384104]
[1771821807522,0.07326183,1855.8,1855.2,1.31384104]
[1771821807723,0.82156211,1855.7,1855.2,1.31384104]
[1771821808023,0.07326183,1855.8,1855.2,1.31384104]
[1771821808214,0.82156391,1855.7,1855.2,1.31384104]
[1771821808415,0.02164555,1855.9,1855.2,1.31384104]
[1771821808620,0.84331475,1855.8,1855.2,1.31384104]
[1771821808816,0.84331475,1855.7,1855.2,1.31384104]
[1771821809025,0.02164555,1855.9,1855.2,1.31384104]
[1771821809226,0.83817041,1855.8,1855.2,1.31384104]
[1771821809425,0.82169616,1855.7,1855.2,1.31384104]
[1771821809725,0.01647425,1855.8,1855.2,1.31384104]
[1771821809925,0.82186097,1855.7,1855.2,1.31384104]
[1771821810118,0.01662148,1856.1,1855.2,1.31384104]
[1771821810322,0.82923178,1856.0,1855.2,1.31384104]
[1771821810627,0.26946,1856.2,1855.3,1.33055216]
[1771821810628,0.82191319,1855.9,1855.3,1.33055216]
[1771821810824,0.00731859,1856.1,1855.3,1.33055216]
[1771821811017,0.82941237,1856.0,1855.3,1.33055216]
[1771821811326,0.82209378,1855.9,1855.3,1.33055216]
[1771821811519,0.00731859,1856.0,1855.3,1.33055216]
[1771821811718,0.82235239,1855.9,1855.3,1.33055216]
[1771821811926,0.00731859,1856.0,1855.3,1.33055216]
[1771821812129,0.82235262,1855.9,1855.3,1.33055216]
[1771821812328,0.00731859,1856.0,1855.3,1.33055216]
[1771821812629,0.82234603,1855.9,1855.3,1.33055216]
[1771821812828,0.26946,1856.2,1855.3,1.33055216]
[1771821813020,0.82234125,1856.1,1855.3,1.33055216]
[1771821813225,0.82234125,1856.0,1855.3,1.33055216]
[1771821813427,0.82234125,1855.9,1855.3,1.33055216]
[1771821813629,0.26946,1856.2,1855.3,1.33055216]
[1771821813931,0.82244125,1856.1,1855.3,1.33055216]
[1771821814129,0.82244125,1856.0,1855.3,1.33055216]
[1771821814430,0.82244125,1855.9,1855.3,1.33055216]
[1771821814631,0.26946,1856.2,1855.3,1.33055216]
[1771821814827,0.82244247,1856.1,1855.3,1.33055216]
[1771821815121,0.82244247,1856.0,1855.3,1.33055216]
[1771821815324,0.82244247,1855.9,1855.3,1.33055216]
[1771821815525,0.26946,1856.2,1855.3,1.33055216]
[1771821815825,0.82258116,1856.1,1855.3,1.33055216]
[1771821816025,0.82258116,1856.0,1855.8,2.80256227]
[1771821816225,0.82258116,1855.9,1855.8,2.80256227]
[1771821816422,5.39,1856.3,1855.7,1.33385934]
[1771821817232,0.02258863,1856.2,1855.7,1.33385934]
[1771821818132,0.02258863,1856.2,1855.2,0.00495494]
[1771821818328,0.02258863,1856.2,1855.3,1.33458583]
[1771821828358,0.81713091,1856.1,1855.3,1.33458583]
[1771821828557,0.81713091,1856.0,1855.3,1.33458583]
[1771821828757,0.81713091,1855.9,1855.3,1.33458583]
[1771821828956,5.39,1856.3,1855.3,1.33458583]
[1771821829155,9.21934944,1856.2,1855.3,1.33458583]
[1771821829357,0.81713635,1856.1,1855.3,1.33458583]
[1771821829656,0.81713635,1856.0,1855.3,1.33458583]
[1771821829856,0.81713635,1855.9,1855.3,1.33458583]
[1771821830058,0.26944,1856.2,1855.3,1.33458583]
[1771821830257,0.81716174,1856.1,1855.3,1.33458583]
[1771821830459,0.81716174,1856.0,1855.8,4.13650653]
[1771821830758,0.81716174,1855.9,1855.8,4.13650653]
[1771821830959,0.26944,1856.2,1855.8,2.80256227]
[1771821831156,0.0067618,1856.1,1855.8,2.80256227]
[1771821831858,0.0067618,1856.1,1855.8,4.13736911]
[1771821832259,0.26944,1856.2,1855.8,4.13736911]
[1771821832460,0.26944,1856.2,1855.9,1.33462707]
[1771821833458,0.26944,1856.2,1855.9,1.08463427]
[1771821833658,0.26944,1856.2,1855.9,0.95963787]
[1771821833659,0.64512559,1856.2,1855.9,0.95963787]
[1771821834154,0.64512559,1856.2,1855.3,1.2102241]
[1771821836059,0.26944,1856.2,1855.3,1.2102241]
[1771821838255,0.00405252,1856.5,1855.8,1.2102241]
[1771821838957,0.52945213,1856.5,1855.8,1.2102241]
[1771821839556,0.00405252,1856.5,1855.8,1.2102241]
[1771821840162,0.51964469,1856.5,1855.8,1.2102241]
[1771821842560,0.00405252,1856.5,1855.8,1.2102241]
[1771821844261,6.467,1856.8,1855.8,1.2102241]
[1771821844463,0.81042197,1856.7,1856.0,1.2102241]
[1771821844667,6.467,1856.8,1856.0,1.2102241]
[1771821844860,0.81050411,1856.7,1856.0,1.2102241]
[1771821845065,6.467,1856.8,1856.0,1.2102241]
[1771821845269,0.81049518,1856.7,1856.0,1.2102241]
[1771821845466,6.47324097,1856.8,1856.0,1.2102241]
[1771821845668,0.81014613,1856.7,1856.0,1.2102241]
[1771821845867,6.47324097,1856.8,1856.0,1.2102241]
[1771821846061,0.81015474,1856.7,1856.0,1.2102241]
[1771821846268,0.00624097,1856.8,1856.6,4.01278637]
[1771821846472,0.5238956,1857.4,1856.7,1.2102241]
[1771821846773,0.5238956,1857.2,1856.7,1.2102241]
[1771821847072,0.5238956,1857.0,1856.6,1.21649864]
[1771821847470,0.5306011,1857.0,1856.6,0.00627454]
[1771821851976,0.5306011,1857.0,1856.6,1.21649864]
[1771821852176,0.5306011,1857.0,1856.3,1.2102241]
[1771821853077,0.5306011,1857.0,1856.3,1.21712499]
[1771821853471,0.0067055,1857.0,1856.3,1.21712499]
[1771821853876,0.48813748,1857.0,1856.3,1.21712499]
[1771821859481,0.46512766,1856.8,1856.3,1.21712499]
[1771821860981,0.45586459,1856.6,1856.2,1.27476914]
[1771821862078,0.45586459,1856.6,1856.2,1.27958458]
[1771821864588,0.11210198,1856.4,1856.2,0.00481544]
[1771821864788,0.11210198,1856.4,1856.0,1.25441316]
[1771821865789,0.11210198,1856.4,1856.0,1.25922886]
[1771821867688,0.11723901,1856.6,1856.0,1.25922886]
[1771821867887,0.92317067,1856.5,1856.0,1.25922886]
[1771821868088,0.11723901,1856.6,1856.0,1.25922886]
[1771821868281,0.80594772,1856.5,1856.0,1.25922886]
[1771821868482,0.11083087,1856.7,1856.0,1.25922886]
[1771821868681,0.80602415,1856.6,1856.0,1.25922886]
[1771821868886,0.80602415,1856.5,1856.0,1.25922886]
[1771821869090,0.11083087,1856.7,1856.0,1.25922886]
[1771821869289,0.90725605,1856.6,1856.0,1.25922886]
[1771821869486,0.90712028,1856.5,1856.0,1.25922886]
[1771821869687,0.10107844,1856.5,1856.0,1.25922886]
[1771821869888,0.10107844,1856.6,1856.0,1.25922886]
[1771821870187,0.8061065,1856.5,1856.0,1.25922886]
[1771821870387,0.10107844,1856.6,1856.0,1.25922886]
[1771821870692,0.8516869,1856.5,1856.0,1.25922886]
[1771821870893,0.04558043,1856.5,1856.0,1.25922886]
[1771821873294,0.03101586,1856.6,1856.0,1.25922886]
[1771821873491,0.80628444,1856.5,1856.0,1.25922886]
[1771821873792,0.03101586,1856.6,1856.0,1.25922886]
[1771821873993,0.80634773,1856.5,1856.1,1.26636287]
[1771821874192,0.03101586,1856.7,1856.1,1.26636287]
[1771821874395,0.82900468,1856.6,1856.1,1.26636287]
[1771821874590,0.80634263,1856.5,1856.1,1.26636287]
[1771821874783,0.02266205,1856.6,1856.1,1.26636287]
[1771821874987,0.80634617,1856.5,1856.1,1.26636287]
[1771821875185,0.02266205,1856.6,1856.1,1.26636287]
[1771821875385,0.8063546,1856.5,1856.1,1.26636287]
[1771821875591,0.28576736,1856.8,1856.5,1.26741903]
[1771821875790,0.80644407,1856.7,1856.1,1.26741903]
[1771821875988,0.80644407,1856.6,1856.1,1.26741903]
[1771821876185,0.28576736,1856.8,1856.1,1.26741903]
[1771821876388,0.80643122,1856.7,1856.1,1.26741903]
[1771821876590,0.80643122,1856.6,1856.1,1.26741903]
[1771821876790,0.28576736,1856.8,1856.1,1.26741903]
[1771821877095,0.80642591,1856.7,1856.1,1.26741903]
[1771821877290,0.80642591,1856.6,1856.1,1.26741903]
[1771821877595,0.28576736,1856.8,1856.1,1.26741903]
[1771821877793,0.80652307,1856.7,1856.1,1.26741903]
[1771821877989,0.80652307,1856.6,1856.1,1.26741903]
[1771821878194,0.28576736,1856.8,1856.1,1.26741903]
[1771821878393,0.80663336,1856.7,1856.1,1.26741903]
[1771821878594,0.37375706,1856.6,1856.1,1.26741903]
[1771821878894,0.26936,1856.8,1856.3,1.28872614]
[1771821880493,0.0067055,1857.0,1856.5,1.19494483]
[1771821880698,0.24677594,1857.0,1856.5,1.19494483]
[1771821890403,0.20490411,1857.0,1856.8,1.42180041]
[1771821890707,0.80388509,1856.9,1856.8,1.42180041]
[1771821890907,0.20490411,1857.0,1856.8,1.42180041]
[1771821891303,0.0067055,1857.0,1856.8,1.16060972]
[1771821891810,0.19920723,1857.0,1856.3,1.16060972]
[1771821893304,1.22829287,1856.6,1856.3,1.16060972]
[1771821893511,1.22829287,1856.4,1856.0,1.16542542]
[1771821897217,1.22829287,1856.2,1856.0,1.16542542]
[1771821897409,1.22829287,1856.2,1855.5,1.16060972]
[1771821898009,3.08470234,1856.3,1855.5,1.16060972]
[1771821898413,3.08470234,1856.3,1855.5,1.16605776]
[1771821898613,1.22829287,1856.3,1855.5,1.16605776]
[1771821898813,1.22829287,1856.3,1855.7,1.16060972]
[1771821901714,1.22829287,1856.2,1855.5,1.16605776]
[1771821901919,1.22829287,1856.0,1855.5,1.16605776]
[1771821905519,1.22829287,1856.3,1856.0,1.16060972]
[1771821906218,3.08470234,1856.3,1855.7,1.16060972]
[1771821906418,1.22829287,1856.2,1855.7,1.16060972]
[1771821909720,7.24940947,1856.5,1855.5,0.00544804]
[1771821909721,1.22829287,1856.5,1855.9,1.16060972]
[1771821912720,1.85640947,1856.7,1855.9,1.16060972]
[1771821912922,2.01923661,1856.6,1855.9,1.16060972]
[1771821913123,1.22829287,1856.6,1855.9,1.16060972]
[1771821915329,1.22829287,1856.5,1856.1,1.16060972]
[1771821920031,7.90626813,1856.9,1856.4,1.17029619]
[1771821920233,1.96243221,1856.8,1856.4,1.17029619]
[1771821920431,1.16990813,1856.8,1856.6,1.42180041]
[1771821920935,1.16990813,1856.8,1856.3,1.17029619]
[1771821924041,6.73636,1856.9,1856.3,1.17029619]
[1771821924339,0.79317178,1856.8,1856.3,1.17029619]
[1771821924638,0.0067055,1857.0,1856.3,1.17029619]
[1771821925040,1.16990813,1857.2,1856.5,1.17029619]
[1771821926042,1.17555776,1857.2,1856.5,1.17029619]
[1771821940147,1.17555776,1857.2,1856.3,1.17029619]
[1771821940353,1.16990813,1857.0,1856.3,1.17029619]
[1771821940552,0.79169355,1856.9,1856.3,1.17029619]
[1771821940852,1.16990813,1857.0,1856.3,1.17029619]
[1771821941053,1.16990813,1856.8,1856.3,1.17029619]
[1771821941253,1.16990813,1856.8,1856.0,1.17029619]
[1771821948757,0.00564963,1857.2,1856.2,1.02036186]
[1771821948758,1.02479772,1857.1,1856.2,1.02036186]
[1771821948957,1.02479772,1856.9,1856.2,1.02036186]
[1771821950058,1.02479772,1856.7,1856.2,1.02036186]
[1771821952963,1.02479772,1856.5,1856.1,1.02036186]
[1771821954260,1.02479772,1856.5,1855.6,1.02036186]
[1771821978279,0.79406573,1856.4,1855.6,1.02036186]
[1771821978577,0.83322668,1856.3,1855.6,1.02036186]
[1771821983287,0.83322668,1856.3,1855.8,0.88400001]
[1771822005511,0.83322668,1856.6,1856.0,0.88400001]
[1771822005711,0.83322668,1856.4,1856.0,0.88400001]
[1771822008107,0.77808846,1856.7,1856.4,0.76099172]
[1771822008411,0.77808846,1857.1,1856.5,2.6183128]
[1771822008605,0.77808846,1856.9,1856.5,2.6183128]
[1771822008810,0.77808846,1856.9,1856.6,0.76099172]
[1771822009007,0.00564963,1857.2,1856.6,0.76099172]
[1771822009206,0.77808846,1857.1,1856.6,0.76099172]
[1771822013906,0.78373809,1857.2,1856.6,0.76099172]
[1771822016006,0.78373809,1857.2,1856.3,1.85732108]
[1771822016212,0.78373809,1857.2,1856.4,0.76099172]
[1771822019616,0.78373809,1857.2,1856.6,0.76099172]
[1771822023822,0.78373809,1857.2,1856.4,0.76099172]
[1771822024024,0.77808846,1857.0,1856.4,0.76099172]
[1771822032728,0.78373809,1857.2,1856.6,0.76099172]
[1771822032926,0.77808846,1857.0,1856.6,0.76099172]
[1771822037332,0.78726967,1856.9,1856.6,0.76099172]
[1771822037631,0.77808846,1857.0,1856.6,0.76099172]
[1771822037831,1.53458025,1856.9,1856.6,0.76099172]
[1771822038031,0.74721885,1856.9,1856.6,0.76099172]
[1771822038627,0.74721885,1857.0,1856.6,0.76099172]
[1771822038828,0.78777795,1856.9,1856.6,0.76099172]
[1771822039028,0.74721885,1857.0,1856.6,0.76099172]
[1771822039228,0.78778141,1856.9,1856.6,0.76099172]
[1771822039429,0.74721885,1857.0,1856.6,0.76099172]
[1771822039624,0.7878409,1856.9,1856.6,0.76099172]
[1771822039830,0.74721885,1857.0,1856.6,0.76099172]
[1771822040030,0.7878408,1856.9,1856.6,0.76099172]
[1771822040234,0.74721885,1857.0,1856.6,0.76099172]
[1771822040433,0.7878532,1856.9,1856.6,0.76099172]
[1771822040633,0.74721885,1857.0,1856.6,0.76099172]
[1771822040833,0.78785462,1856.9,1856.6,0.76099172]
[1771822041135,0.74721885,1857.0,1856.6,0.76099172]
[1771822041431,0.787859,1856.9,1856.6,0.76099172]
[1771822041632,0.74721885,1857.0,1856.6,0.76099172]
[1771822041933,0.78787318,1856.9,1856.6,0.76099172]
[1771822042234,0.74721885,1857.0,1856.6,0.76099172]
[1771822042429,0.78787919,1856.9,1856.6,0.76099172]
[1771822042730,0.74721885,1857.0,1856.6,0.76099172]
[1771822043028,0.787879,1856.9,1856.6,0.76099172]
[1771822043327,0.74721885,1857.0,1856.6,0.76099172]
[1771822043526,0.78788585,1856.9,1856.6,0.76099172]
[1771822043730,0.74721885,1857.0,1856.6,0.76099172]
[1771822043934,0.78788564,1856.9,1856.6,0.76099172]
[1771822044132,0.74721885,1857.0,1856.6,0.76099172]
[1771822044333,0.78789109,1856.9,1856.6,0.76099172]
[1771822044535,0.74721885,1857.0,1856.6,0.76099172]
[1771822044833,0.78790677,1856.9,1856.6,0.76099172]
[1771822045036,0.74721885,1857.0,1856.6,0.76099172]
[1771822045335,0.78790679,1856.9,1856.6,0.76099172]
[1771822045530,0.75286848,1857.2,1856.6,0.76099172]
[1771822045730,0.78796277,1857.1,1856.6,0.76099172]
[1771822046026,0.39148363,1857.0,1856.6,0.76099172]
[1771822046232,0.75286848,1857.2,1856.6,0.76099172]
[1771822055136,5.393,1857.5,1856.6,0.76099172]
[1771822055137,6.14021885,1857.5,1856.6,0.76099172]
[1771822055341,0.74721885,1857.3,1856.6,0.76099172]
[1771822056144,0.75132372,1857.3,1856.6,0.76099172]
[1771822058044,1.53215934,1857.2,1856.6,0.76099172]
[1771822058248,0.78494049,1857.1,1856.6,0.76099172]
[1771822058444,0.74721885,1857.2,1856.6,0.76099172]
[1771822058643,0.78489558,1857.1,1856.6,0.76099172]
[1771822058842,0.74721885,1857.2,1856.6,0.76099172]
[1771822059046,0.78489688,1857.1,1856.6,0.76099172]
[1771822059246,0.74721885,1857.2,1856.6,0.76099172]
[1771822059538,0.78486677,1857.1,1856.6,0.76099172]
[1771822059741,0.74721885,1857.2,1856.6,0.76099172]
[1771822059943,0.78486659,1857.1,1856.6,0.76099172]
[1771822060143,0.74721885,1857.2,1856.6,0.76099172]
[1771822060343,0.78487711,1857.1,1856.6,0.76099172]
[1771822060543,0.74721885,1857.2,1856.6,0.76099172]
[1771822060743,0.78484634,1857.1,1856.6,0.76099172]
[1771822060945,0.74721885,1857.2,1856.6,0.76099172]
[1771822061246,0.78484679,1857.1,1856.6,0.76099172]
[1771822061446,0.75132372,1857.3,1856.6,0.76099172]
[1771822061647,0.78484696,1857.2,1856.6,0.76099172]
[1771822061848,0.75132372,1857.3,1856.6,0.76099172]
[1771822062048,0.78487611,1857.2,1856.6,0.76099172]
[1771822062350,0.75132372,1857.3,1856.6,0.76099172]
[1771822062552,0.78482182,1857.2,1856.6,0.76099172]
[1771822062849,0.75132372,1857.3,1856.6,0.76099172]
[1771822063149,0.78455215,1857.2,1856.6,0.76099172]
[1771822063450,0.75132372,1857.3,1856.6,0.76099172]
[1771822063641,0.78449211,1857.2,1856.6,0.76099172]
[1771822063845,0.75132372,1857.3,1856.6,0.76099172]
[1771822064051,0.78440187,1857.2,1856.6,0.76099172]
[1771822064245,0.75132372,1857.3,1856.6,0.76099172]
[1771822064443,0.74721885,1857.1,1856.6,0.76099172]
[1771822071350,0.00410487,1857.3,1856.6,0.76099172]
[1771822071556,0.78424741,1857.2,1856.6,0.76099172]
[1771822071855,0.78424741,1857.1,1856.6,0.76099172]
[1771822072155,0.62108278,1857.3,1856.6,0.76099172]
[1771822072352,0.7842639,1857.2,1856.6,0.76099172]
[1771822072656,0.7842639,1857.1,1856.6,0.76099172]
[1771822072856,0.62108278,1857.3,1856.6,0.76099172]
[1771822073059,0.78432764,1857.2,1856.6,0.76099172]
[1771822073354,0.78432764,1857.1,1856.6,0.76099172]
[1771822073554,0.62108278,1857.3,1856.6,0.76099172]
[1771822073756,0.78435326,1857.2,1856.6,0.76099172]
[1771822073957,0.78435326,1857.1,1856.6,0.76099172]
[1771822074159,0.62108278,1857.3,1856.6,0.76099172]
[1771822074360,0.78439296,1857.2,1856.6,0.76099172]
[1771822074556,0.78439296,1857.1,1856.6,0.76099172]
[1771822074756,0.62108278,1857.3,1856.6,0.76099172]
[1771822074957,0.78439331,1857.2,1856.6,0.76099172]
[1771822075155,0.62108278,1857.3,1856.6,0.76099172]
[1771822075358,0.78135407,1857.2,1856.6,0.76099172]
[1771822075560,0.78135407,1857.1,1856.6,0.76099172]
[1771822075759,0.62108278,1857.3,1856.6,0.76099172]
[1771822075961,0.78137619,1857.2,1856.6,0.76099172]
[1771822076160,0.62108278,1857.3,1856.6,0.76099172]
[1771822076161,0.78137619,1857.1,1856.6,0.76099172]
[1771822076362,0.62108278,1857.3,1856.6,0.76099172]
[1771822076561,0.78137954,1857.2,1856.6,0.76099172]
[1771822076762,0.78137954,1857.1,1856.6,0.76099172]
[1771822076963,0.62108278,1857.3,1856.6,0.76099172]
[1771822077164,0.78138187,1857.2,1856.6,0.76099172]
[1771822077364,0.62108278,1857.3,1856.6,0.76099172]
[1771822077664,0.78139502,1857.2,1856.6,0.76099172]
[1771822077864,0.62108278,1857.3,1856.6,0.76099172]
[1771822078065,0.78138236,1857.2,1856.6,0.76099172]
[1771822078364,0.62108278,1857.3,1856.6,0.76099172]
[1771822078564,0.78138365,1857.2,1856.7,0.6298411]
[1771822078865,0.62108278,1857.3,1856.7,0.6298411]
[1771822079163,0.78138362,1857.2,1856.7,0.6298411]
[1771822079367,0.62108278,1857.3,1856.7,0.6298411]
[1771822079565,0.7814048,1857.2,1856.7,0.6298411]
[1771822079766,0.62108278,1857.3,1856.7,0.6298411]
[1771822079966,0.61697791,1857.1,1856.7,0.6298411]
[1771822080260,0.00410487,1857.3,1856.7,0.6298411]
[1771822080468,0.61697791,1857.6,1856.8,0.6298411]
[1771822080768,1.39876879,1857.5,1856.8,0.6298411]
[1771822080958,0.61697791,1857.5,1856.8,0.6298411]
[1771822081365,0.62355507,1857.5,1856.8,0.63425587]
[1771822083566,0.62355507,1857.5,1856.8,0.00441477]
[1771822083567,0.61697791,1857.2,1856.8,0.00441477]
[1771822083768,0.61697791,1857.0,1856.6,0.6298411]
[1771822084969,0.61697791,1857.0,1856.6,0.63513933]
[1771822086171,0.61697791,1857.0,1856.6,0.00529823]
[1771822089368,0.61697791,1857.0,1856.4,0.6298411]
[1771822089866,0.61697791,1856.8,1856.0,0.6298411]
[1771822090367,0.61697791,1856.8,1856.0,0.63565147]
[1771822096271,1.85592774,1857.1,1856.1,0.6298411]
[1771822096272,0.61697791,1856.6,1856.1,0.6298411]
[1771822100684,0.57292821,1856.8,1856.1,0.6298411]
[1771822105290,0.57292821,1857.1,1856.1,0.6298411]
[1771822105482,0.57292821,1856.9,1856.1,0.6298411]
[1771822107288,0.57292821,1856.9,1856.4,0.6067508]
[1771822110789,0.57292821,1856.7,1856.2,0.6067508]
[1771822110995,0.57292821,1856.7,1856.1,0.6067508]
[1771822115194,5.393,1856.9,1856.2,0.6067508]
[1771822115496,0.57292821,1857.1,1856.4,0.6067508]
[1771822115696,0.57292821,1856.9,1856.4,0.6067508]
[1771822115896,0.57292821,1856.9,1856.3,1.85624366]
[1771822115897,0.57292821,1856.9,1856.2,0.6067508]
[1771822116399,0.57292821,1856.7,1856.2,0.6067508]
[1771822125197,0.57292821,1856.9,1856.4,0.6067508]
[1771822125405,1.35409865,1856.8,1856.4,0.6067508]
[1771822125603,0.78117044,1856.7,1856.4,0.6067508]
[1771822125803,0.57292821,1856.8,1856.4,0.6067508]
[1771822126004,1.35409924,1856.7,1856.4,0.6067508]
[1771822126205,0.57292821,1856.7,1856.4,0.6067508]
[1771822126502,0.57292821,1857.0,1856.6,0.6067508]
[1771822126703,0.57292821,1857.1,1856.8,0.6067508]
[1771822127307,0.57292821,1857.4,1856.8,0.6067508]
[1771822131306,0.57292821,1857.4,1857.0,0.59646022]
[1771822132601,0.57292821,1857.4,1856.9,2.45270388]
[1771822132806,0.57292821,1857.4,1856.8,0.59646022]
[1771822133708,0.57292821,1857.4,1856.9,0.59646022]
[1771822135710,0.57292821,1857.4,1856.8,1.85624366]
[1771822135711,0.61564924,1857.5,1857.0,1.85624366]
[1771822135912,0.61564924,1857.5,1857.0,2.45270388]
[1771822136112,0.61564924,1857.5,1857.1,0.59646022]
[1771822136311,0.61564924,1857.5,1856.9,0.59646022]
[1771822138513,0.61564924,1857.5,1857.0,1.85624366]
[1771822138714,0.77376733,1857.4,1857.1,0.59646022]
[1771822138916,0.61564924,1857.5,1857.1,0.59646022]
[1771822140615,0.60907208,1857.4,1856.8,2.45270388]
[1771822140814,0.60907208,1857.2,1856.6,0.59646022]
[1771822141012,0.60907208,1857.1,1856.6,0.59646022]
[1771822141618,0.60907208,1857.0,1856.5,0.59646022]
[1771822142018,0.60907208,1857.0,1856.4,2.45270388]
[1771822142317,0.60907208,1857.0,1856.5,0.59646022]
[1771822147216,0.60907208,1857.1,1856.6,1.85624366]
[1771822147416,0.60907208,1857.1,1856.7,0.59646022]
[1771822147920,0.60907208,1857.0,1856.7,0.59646022]
[1771822151612,0.60907208,1857.0,1856.4,1.85624366]
[1771822151818,0.60907208,1857.0,1856.5,0.59646022]
[1771822154724,0.60907208,1857.1,1856.5,0.59646022]
[1771822155527,0.60907208,1857.4,1856.9,0.59646022]
[1771822155827,0.61564924,1857.5,1856.9,0.59646022]
[1771822156030,0.7754879,1857.4,1856.9,0.59646022]
[1771822156224,0.61564924,1857.5,1856.9,0.59646022]
[1771822156528,0.77563396,1857.4,1856.9,0.59646022]
[1771822156826,1.3845128,1857.3,1856.9,0.59646022]
[1771822157025,0.60907208,1857.3,1856.9,0.59646022]
[1771822158322,0.59257627,1857.4,1856.9,0.59646022]
[1771822162226,0.59257627,1857.4,1856.9,0.57563659]
[1771822168133,0.59257627,1856.6,1855.6,0.5392]
[1771822168337,0.59257627,1856.2,1855.7,0.57563659]
[1771822168531,0.59257627,1856.2,1855.7,3.74506659]
[1771822169033,0.59257627,1856.2,1855.7,3.16943]
[1771822169231,0.59676559,1856.2,1855.7,0.00569958]
[1771822170840,0.59676559,1856.2,1855.6,0.57563659]
[1771822171834,0.59676559,1856.2,1855.6,0.58095553]
[1771822179842,0.59257627,1857.0,1855.9,0.57563659]
[1771822180046,0.59257627,1856.9,1856.1,0.57563659]
[1771822180245,0.59257627,1856.8,1856.0,7.056]
[1771822180444,0.59257627,1856.5,1855.9,0.57563659]
[1771822180641,0.59915045,1856.5,1855.9,0.57563659]
[1771822189044,0.58265155,1856.4,1855.8,0.60661174]
[1771822189250,0.58265155,1856.3,1855.8,7.66261174]
[1771822190044,0.58265155,1856.3,1855.9,0.60661174]
[1771822192248,0.58265155,1856.3,1855.8,7.056]
[1771822192457,0.58265155,1856.3,1855.8,7.66261174]
[1771822193847,0.58265155,1856.3,1855.9,0.60661174]
[1771822196059,0.58265155,1856.3,1855.8,7.66261174]
[1771822196261,0.58265155,1856.3,1855.6,0.61193068]
[1771822196556,0.58265155,1856.2,1855.6,0.61193068]
[1771822197454,0.58265155,1856.1,1855.6,0.61193068]
[1771822202956,0.58922573,1856.5,1855.7,0.60661174]
[1771822203160,0.77271568,1856.4,1855.7,0.60661174]
[1771822203355,0.58922573,1856.5,1855.7,0.60661174]
[1771822203568,0.77293138,1856.4,1855.7,0.60661174]
[1771822203865,0.58922573,1856.5,1855.7,0.60661174]
[1771822204167,0.00657418,1856.5,1855.9,0.60661174]
[1771822207871,0.58265155,1856.8,1855.9,0.60661174]
[1771822208069,0.58265155,1856.6,1855.9,0.60661174]
[1771822209169,0.58956473,1856.6,1855.9,0.60661174]
[1771822211371,5.389,1856.9,1856.3,0.60661174]
[1771822211570,5.97165155,1856.9,1856.3,0.60661174]
[1771822212366,5.97743377,1856.9,1856.3,0.60661174]
[1771822212966,0.58843377,1856.9,1856.3,0.60661174]
[1771822214173,0.00578222,1856.9,1856.3,0.60661174]
[1771822217466,5.94475971,1857.2,1856.3,0.60661174]
[1771822217666,0.55575971,1857.2,1856.5,0.54984854]
[1771822217873,5.94475971,1857.3,1856.5,0.54984854]
[1771822218072,0.55575971,1857.2,1856.5,0.54984854]
[1771822218571,0.55966083,1857.2,1856.5,0.54984854]
[1771822229279,0.55966083,1857.2,1856.8,0.54984854]
[1771822230781,0.00390112,1857.2,1856.8,0.54984854]